fUSD/lending_fUSD_20240301
["ID","MTS","AMOUNT","RATE_DAILY","PERIOD"]
[315967947,1709305900447,-1905.1,0.00022904,2]
[315967948,1709305900458,-1197.98,0.00022904,2]
[315967949,1709305900468,-500.0,0.00022904,2]
[315967950,1709305900477,-1184.73,0.00022904,2]
[315967951,1709305900488,-500.0,0.00022904,2]
[315967952,1709305900498,-500.0,0.00022904,2]
[315967953,1709305900508,-934.94,0.00022904,2]
[315967954,1709305900518,-3329.36,0.00022904,2]
[315967955,1709305900531,-1905.59,0.00022904,2]
[315967956,1709305900540,-500.0,0.00022904,2]
[315967957,1709305900550,-500.0,0.00022904,2]
[315967958,1709305900559,-830.59,0.00022904,2]
[315967959,1709305900569,-555.78,0.00022904,2]
[315967960,1709305900578,-528.51,0.00022904,2]
[315967961,1709305900588,-1148.67,0.00022904,2]
[315967962,1709305900598,-1574.86,0.00022904,2]
[315967963,1709305900608,-500.0,0.00022904,2]
[315967964,1709305900617,-924.56,0.00022904,2]
[315967965,1709305900627,-765.51,0.00022904,2]
[315967966,1709305900637,-1684.51,0.00022904,2]
[315967967,1709305900646,-500.0,0.00022904,2]
[315967968,1709305900655,-604.09,0.00022904,2]
[315967969,1709305900665,-500.0,0.00022904,2]
[315967970,1709305900674,-878.61,0.00022904,2]
[315967971,1709305900683,-873.4,0.00022904,2]
[315967972,1709305900692,-847.29,0.00022904,2]
[315967973,1709305900702,-983.47,0.00022904,2]
[315967974,1709305900711,-1114.24,0.00022904,2]
[315967975,1709305900721,-721.29,0.00022904,2]
[315967976,1709305900731,-1667.9,0.00022904,2]
[315967977,1709305900740,-1455.8,0.00022904,2]
[315967978,1709305900749,-500.0,0.00022904,2]
[315967979,1709305900758,-500.0,0.00022904,2]
[315967980,1709305900767,-500.0,0.00022904,2]
[315967981,1709305900778,-500.0,0.00022904,2]
[315967982,1709305900788,-631.77,0.00022904,2]
[315967983,1709305900796,-5562.59,0.00022904,2]
[315967984,1709305900806,-500.0,0.00022904,2]
[315967985,1709305900815,-500.0,0.00022904,2]
[315967986,1709305900825,-5893.85,0.00022904,2]
[315967987,1709305900834,-2262.48,0.00022904,2]
[315967988,1709305900843,-500.0,0.00022904,2]
[315967989,1709305900852,-500.0,0.00022904,2]
[315967990,1709305900861,-506.63,0.00022904,2]
[315967991,1709305900870,-600.25340194,0.00022904,2]
[315967992,1709305900879,-500.0,0.00022904,2]
[315967993,1709305900888,-500.0,0.00022904,2]
[315967994,1709305900897,-634.29,0.00022904,2]
[315967995,1709305900907,-724.63,0.00022904,2]
[315967996,1709305900915,-500.0,0.00022904,2]
[315967997,1709305900925,-7099.15,0.00022904,2]
[315967998,1709305900934,-557.5,0.00022904,2]
[315967999,1709305900944,-500.0,0.00022904,2]
[315968000,1709305900953,-500.0,0.00022904,2]
[315968001,1709305900962,-900.57,0.00022904,2]
[315968002,1709305900971,-1628.31,0.00022904,2]
[315968003,1709305900981,-500.0,0.00022904,2]
[315968004,1709305900990,-1308.47,0.00022904,2]
[315968005,1709305901000,-510.08,0.00022904,2]
[315968006,1709305901010,-5514.48,0.00022904,2]
[315968007,1709305901020,-500.0,0.00022904,2]
[315968008,1709305901031,-500.0,0.00022904,2]
[315968009,1709305901040,-1607.91,0.00022904,2]
[315968010,1709305901049,-1979.13,0.00022904,2]
[315968011,1709305901060,-920.03,0.00022904,2]
[315968012,1709305901070,-500.0,0.00022904,2]
[315968013,1709305901081,-1631.28,0.00022904,2]
[315968014,1709305901091,-500.0,0.00022904,2]
[315968015,1709305901100,-691.36,0.00022904,2]
[315968016,1709305901109,-500.0,0.00022904,2]
[315968017,1709305901119,-540.86,0.00022904,2]
[315968018,1709305901128,-567.34,0.00022904,2]
[315968019,1709305901138,-500.0,0.00022904,2]
[315968020,1709305901147,-500.0,0.00022904,2]
[315968021,1709305901156,-500.0,0.00022904,2]
[315968022,1709305901166,-150.0,0.00022906,2]
[315968023,1709305901175,-150.0,0.00022908,2]
[315968024,1709305901184,-150.0,0.00022917,2]
[315968025,1709305901193,-150.0,0.00022924,2]
[315968026,1709305901203,-150.0,0.00022929,2]
[315968027,1709305901212,-150.0,0.0002293,2]
[315968028,1709305901221,-150.0,0.00022932,2]
[315968029,1709305901230,-150.0,0.00022933,2]
[315968030,1709305901239,-150.0,0.00022935,2]
[315968031,1709305901248,-150.0,0.00022942,2]
[315968032,1709305901257,-476.81878643,0.00022953,2]
[315968033,1709305901266,-199.69,0.00022956,2]
[315968034,1709305901274,-204.92,0.00022956,2]
[315968035,1709305901286,-150.0,0.00022959,2]
[315968036,1709305901295,-150.0,0.0002296,2]
[315968037,1709305901303,-150.0,0.0002296,2]
[315968038,1709305901312,-150.0,0.0002296,2]
[315968039,1709305901321,-150.0,0.00022967,2]
[315968040,1709305901330,-150.0,0.00022967,2]
[315968041,1709305901339,-150.0,0.00022968,2]
[315968042,1709305901348,-150.0,0.00022971,2]
[315968043,1709305901357,-150.0,0.00022972,2]
[315968044,1709305901367,-150.0,0.00022973,2]
[315968045,1709305901377,-150.0,0.00022974,2]
[315968046,1709305901386,-150.0,0.00022978,2]
[315968047,1709305901396,-150.0,0.00022979,2]
[315968048,1709305901405,-163.09892092,0.00022983,2]
[315968049,1709305901415,-150.0,0.00022983,2]
[315968050,1709305901425,-150.0,0.00022984,2]
[315968051,1709305901435,-150.0,0.00022985,2]
[315968052,1709305901448,-200.0,0.00022987,2]
[315968053,1709305901458,-150.0,0.00022987,2]
[315968054,1709305901467,-150.0,0.00022989,2]
[315968055,1709305901477,-170.0,0.0002299,2]
[315968056,1709305901486,-150.0,0.00022995,2]
[315968057,1709305901495,-150.0,0.00022995,2]
[315968058,1709305901504,-150.0,0.00022995,2]
[315968059,1709305901513,-150.0,0.00022995,2]
[315968060,1709305901522,-501.75,0.00022999,2]
[315968061,1709305901532,-500.0,0.00022999,2]
[315968062,1709305901542,-3965.27801153,0.00022999,2]
[315968063,1709305901551,-204.6551733,0.00022999,2]
[315968064,1709305901560,-150.0,0.00022999,2]
[315968065,1709305901570,-150.0,0.00022999,2]
[315968066,1709305901579,-150.0,0.00022999,2]
[315968067,1709305901588,-150.0,0.00022999,2]
[315968068,1709305901597,-150.0,0.00022999,2]
[315968069,1709305901606,-150.0,0.00022999,2]
[315968070,1709305901615,-150.0,0.00022999,2]
[315968071,1709305901625,-150.0,0.00022999,2]
[315968072,1709305901635,-150.0,0.00022999,2]
[315968073,1709305901644,-150.0,0.00022999,2]
[315968074,1709305901653,-150.67204961,0.00022999,2]
[315968075,1709305901662,-171917.39341932,0.00023,2]
[315968076,1709305902310,-186119.58752683,0.00023,2]
[315968077,1709305902321,-174664.65776734,0.00023,2]
[315968078,1709305902333,-96744.24536242,0.00023,2]
[315968079,1709305902564,-2398.02,0.00022684,2]
[315968080,1709305902573,-47022.64038885,0.00023,2]
[315968081,1709305902584,-1107.8,0.00023,2]
[315968082,1709305902600,-488.84000104,0.00023,2]
[315968083,1709305902877,-500.0,0.00022027,2]
[315968084,1709305902888,-500.0,0.00022136,2]
[315968085,1709305902897,-500.0,0.00022246,2]
[315968086,1709305902907,-500.0,0.00022356,2]
[315968087,1709305902917,-500.0,0.00022465,2]
[315968088,1709305902927,-2398.02,0.00022794,2]
[315968089,1709305902936,-2001.72904553,0.00022904,2]
[315968090,1709305902954,-396.29095447,0.00022904,2]
[315968091,1709305902963,-223.58904553,0.00023,2]
[315968092,1709305902978,-4035.27973009,0.00023,2]
[315968093,1709305903300,-500.0,0.00022575,2]
[315968094,1709305903309,-18135.26785317,0.00023,2]
[315968095,1709305903320,-10536.21381066,0.00023,2]
[315968096,1709305903332,-503.20733674,0.00023,2]
[315968097,1709305903343,-842.64879468,0.00023,2]
[315968098,1709305903860,-723.12993037,0.00019177,2]
[315968099,1709305903869,-1497.6877169,0.00022414,6]
[315968100,1709305903879,-500.0,0.00022684,2]
[315968101,1709305903888,-500.0,0.00022794,2]
[315968102,1709305903898,-500.0,0.00022904,2]
[315968103,1709305903908,-2828.00577919,0.00023,2]
[315968104,1709305903924,-3684.3744062,0.00023,2]
[315968105,1709305903944,-290.64988723,0.00023,2]
[315968106,1709305903955,-15144.06993924,0.00023,2]
[315968107,1709305903967,-13682.68006074,0.00023,2]
[315968108,1709305903987,-8066.96719349,0.00023,2]
[315968109,1709305903999,-154295.50200772,0.00023,2]
[315968110,1709305904091,-21.775,0.00023,2]
[315968111,1709305904553,-234.84782212,0.00019176,2]
[315968112,1709305904563,-297.57420977,0.000224,2]
[315968113,1709305904573,-134807.62016786,0.00023,2]
[315968114,1709305904581,-107360.20730278,0.00023,2]
[315968115,1709305904593,-4428.14339601,0.00023,2]
[315968116,1709305904668,-246181.5213913,0.00023,2]
[315968117,1709305904792,-5570.45453968,0.00023,2]
[315968118,1709305904804,-17710.53863,0.00023,2]
[315968119,1709305904815,-1238.71,0.00023,2]
[315968120,1709305904830,-694.14833885,0.00023,2]
[315968121,1709305904842,-425.400001,0.00023,2]
[315968133,1709306047430,-174.56,0.00025827,120]
[315968134,1709306047455,-2000.0,0.00026,30]
[315968135,1709306047477,-1000.0,0.00026,120]
[315968136,1709306047505,-2000.0,0.00026,30]
[315968137,1709306047534,-1000.0,0.000263,30]
[315968138,1709306047560,-152.39,0.00026952,120]
[315968139,1709306047586,-1000.0,0.00027,120]
[315968140,1709306047619,-500.0,0.00027397,30]
[315968141,1709306047644,-500.0,0.00027397,30]
[315968142,1709306047674,-1000.0,0.000274,30]
[315968143,1709306047707,-209.39,0.00027548,120]
[315968144,1709306047734,-1000.0,0.00028,120]
[315968145,1709306048194,151.0,0.00026324,30]
[315968146,1709306048244,151.0,0.00025797,120]
[315968147,1709306068889,-282.74523194,0.00028297,120]
[315968148,1709306068912,-1000.0,0.000284,120]
[315968149,1709306068939,-32329.65161255,0.000285,120]
[315968150,1709306068968,-1000.0,0.00029,120]
[315968151,1709306069001,-152.39,0.00029402,120]
[315968152,1709306069024,-150.0,0.00029424,120]
[315968153,1709306069064,-150.0,0.0003,120]
[315968154,1709306069087,-11081.32816063,0.0003,120]
[315968155,1709306069109,-2699.99999801,0.0003,120]
[315968156,1709306069134,-1000.0,0.0003,120]
[315968157,1709306073409,-165138.46826378,0.00028565,30]
[315968158,1709306073452,-2000.0,0.000298,30]
[315968159,1709306073491,-2000.0,0.0003,30]
[315968160,1709306073514,-203.697872,0.0003,30]
[315968161,1709306073539,-2000.0,0.0003,30]
[315968162,1709306073561,-100000.0,0.0003,30]
[315968163,1709306073588,-2400.0,0.0003,31]
[315968164,1709306073611,-2000.0,0.0003,30]
[315968165,1709306073636,-708.99708944,0.0003,30]
[315968166,1709306093501,-159.82,0.00020918,10]
[315968167,1709306094194,-823.27714528,0.00022999,10]
[315968173,1709306103769,-151.0,0.00022136,7]
[315968174,1709306103795,-151.0,0.00022136,7]
[315968175,1709306103827,-151.0,0.00022246,7]
[315968176,1709306103848,-151.0,0.00022246,7]
[315968177,1709306103879,-151.0,0.00022356,7]
[315968178,1709306103917,-151.0,0.00022575,7]
[315968179,1709306103959,-157.396801,0.00022794,7]
[315968180,1709306103992,-151.0,0.00022904,7]
[315968181,1709306104014,-151.0,0.00022904,7]
[315968182,1709306104035,-151.0,0.00022904,7]
[315968183,1709306104056,-151.0,0.00022904,7]
[315968184,1709306104078,-151.0,0.00022904,7]
[315968185,1709306104100,-151.0,0.00022904,7]
[315968186,1709306104122,-151.0,0.00022904,7]
[315968187,1709306104154,-10000.0,0.00023,7]
[315968188,1709306104175,-151.0,0.00023,7]
[315968189,1709306104199,-151.0,0.00023,7]
[315968190,1709306104221,-151.0,0.00023,7]
[315968191,1709306104243,-151.0,0.00023,7]
[315968192,1709306104266,-207.697979,0.00023,7]
[315968193,1709306104291,-151.0,0.00023,7]
[315968194,1709306104314,-151.0,0.00023,7]
[315968195,1709306104337,-151.0,0.00023,7]
[315968196,1709306104358,-151.0,0.00023,7]
[315968197,1709306104380,-151.0,0.00023,7]
[315968198,1709306104402,-186.597612,0.00023,7]
[315968199,1709306104425,-151.0,0.00023,7]
[315968200,1709306104449,-151.0,0.00023,7]
[315968201,1709306104472,-151.0,0.00023,7]
[315968202,1709306104495,-151.0,0.00023,7]
[315968203,1709306104519,-151.0,0.00023,7]
[315968204,1709306104541,-151.0,0.00023,7]
[315968205,1709306104564,-151.0,0.00023,7]
[315968206,1709306104588,-151.0,0.00023,7]
[315968207,1709306104610,-151.0,0.00023,7]
[315968208,1709306104632,-151.0,0.00023,7]
[315968209,1709306104654,-151.0,0.00023,7]
[315968210,1709306104677,-151.0,0.00023,7]
[315968211,1709306104700,-151.0,0.00023,7]
[315968212,1709306104722,-151.0,0.00023,7]
[315968213,1709306104938,-151.0,0.00023,7]
[315968214,1709306104964,-151.0,0.00023,7]
[315968215,1709306104987,-151.0,0.00023,7]
[315968216,1709306105012,-177.334322,0.00023,7]
[315968217,1709306105042,-177.334322,0.00023,7]
[315968218,1709306105066,-151.0,0.00023,7]
[315968219,1709306105089,-151.0,0.00023,7]
[315968220,1709306105112,-177.334322,0.00023,7]
[315968221,1709306105136,-177.334322,0.00023,7]
[315968222,1709306114917,-710.61558381,0.00021436,6]
[315968223,1709306114939,-710.61558381,0.00021446,6]
[315968224,1709306114963,-710.61558381,0.00021459,6]
[315968225,1709306114985,-710.61558381,0.00021499,6]
[315968226,1709306115105,-4978.07594881,0.000229,6]
[315968227,1709306115140,-151.0,0.00023,7]
[315968228,1709306115162,-151.0,0.00023,7]
[315968229,1709306123802,-203.0,0.00021669,4]
[315968230,1709306123869,-245105.27038269,0.00022356,4]
[315968231,1709306123955,-4568.50704294,0.00023,4]
[315968232,1709306123981,-331.15813948,0.00023,7]
[315968233,1709306132873,-1919.07639684,0.0002,3]
[315968234,1709306132934,-613.22,0.00022234,3]
[315968235,1709306132982,-2519.81565625,0.00022449,3]
[315968236,1709306133008,-251.98156562,0.00022449,3]
[315968237,1709306133032,-408.39677362,0.00022449,3]
[315968238,1709306133055,-289.88155083,0.00022449,3]
[315968239,1709306133134,-1895.55534005,0.00023,3]
[315968240,1709306133159,-1006.80999063,0.00023,3]
[315968241,1709306133183,-151.0,0.00023,3]
[315968242,1709306133205,-151.0,0.00023,3]
[315968253,1709306680544,87142.0,0.000251,120]
[315968276,1709307031459,-234.84782212,0.00016232,2]
[315968277,1709307031475,-157.40158029,0.00016233,2]
[315968278,1709307031487,-207.34517305,0.00016233,2]
[315968279,1709307031498,-5492.2922799,0.0001625,2]
[315968280,1709307031508,-157.70427687,0.0001625,2]
[315968281,1709307031518,-1328.030413,0.00016251,2]
[315968282,1709307031529,-155.0,0.00016334,2]
[315968283,1709307031540,-508.01161448,0.00016334,2]
[315968284,1709307031550,-692.90731309,0.00016334,2]
[315968285,1709307031560,-546.60403373,0.00016334,2]
[315968286,1709307031570,-165.70840078,0.00016335,2]
[315968287,1709307031580,-5027.3407869,0.00016335,2]
[315968288,1709307031592,-310.23588898,0.00016335,2]
[315968289,1709307031602,-1042.70407303,0.00016336,2]
[315968290,1709307031612,-9115.86003799,0.00016337,2]
[315968291,1709307031623,-3340.88630331,0.00016337,2]
[315968292,1709307031644,-631.68893403,0.00016337,2]
[315968293,1709307031661,-9058.03025782,0.00016337,2]
[315968294,1709307031670,-626.57961493,0.00016602,2]
[315968295,1709307031746,-279.42038594,0.00016602,2]
[315968296,1709307031756,-1225.24,0.00016608,2]
[315968297,1709307031765,-165.17204236,0.00017525,2]
[315968298,1709307031775,-520.02768808,0.00017525,2]
[315968299,1709307031809,-2350.85435,0.00017525,2]
[315968300,1709307031871,-361.34346189,0.00017525,2]
[315968301,1709307031889,-5872.38450003,0.00017525,2]
[315968302,1709307031898,-499.99,0.00017525,2]
[315968303,1709307031908,-150.99,0.00017525,2]
[315968304,1709307031917,-793.22,0.00017525,2]
[315968305,1709307031926,-203.0,0.00017753,2]
[315968306,1709307031935,-206.0,0.00017753,2]
[315968307,1709307031945,-1209.0,0.0001856,2]
[315968308,1709307031954,-200.0,0.00018578,2]
[315968309,1709307031963,-250.0,0.00018636,2]
[315968310,1709307031976,-325.75,0.0001868,2]
[315968311,1709307031986,-170.49,0.00018746,2]
[315968312,1709307031996,-1791.44,0.00018775,2]
[315968314,1709307032006,-750.0,0.00018779,2]
[315968316,1709307032016,-152.39,0.0001878,2]
[315968318,1709307032025,-2751.0,0.00018782,2]
[315968320,1709307032035,-3002.12,0.00018786,2]
[315968321,1709307032044,-155.0,0.00018792,2]
[315968322,1709307032054,-258.80338834,0.00018793,2]
[315968323,1709307032063,-2661.23,0.00018827,2]
[315968324,1709307032073,-200.0,0.00018863,2]
[315968325,1709307032082,-795.25,0.0001887,2]
[315968326,1709307032091,-178.4,0.00018871,2]
[315968327,1709307032101,-1225.24,0.00018872,2]
[315968328,1709307032110,-214.62,0.00018915,2]
[315968329,1709307032119,-200.0,0.00018945,2]
[315968330,1709307032128,-150.0,0.00018945,2]
[315968331,1709307032137,-500.0,0.00018951,2]
[315968332,1709307032146,-364.0,0.00018965,2]
[315968333,1709307032155,-288.83,0.00018991,2]
[315968334,1709307032165,-288.83,0.00019043,2]
[315968335,1709307032174,-5529.7,0.00019064,2]
[315968336,1709307032184,-288.83,0.00019095,2]
[315968337,1709307032194,-171.0,0.00019119,2]
[315968338,1709307032204,-288.83,0.00019148,2]
[315968339,1709307032218,-549.08209554,0.00019178,2]
[315968340,1709307032229,-1125.9281105,0.00019178,2]
[315968341,1709307032238,-1898.13689717,0.00019178,2]
[315968342,1709307032246,-285.98935918,0.00019178,2]
[315968343,1709307032256,-250.0,0.00019178,2]
[315968344,1709307032265,-250.0,0.00019178,2]
[315968345,1709307032275,-288.83,0.000192,2]
[315968346,1709307032284,-288.83,0.00019252,2]
[315968347,1709307032294,-636.0,0.00019277,2]
[315968348,1709307032303,-288.83,0.00019304,2]
[315968349,1709307032313,-288.83,0.00019356,2]
[315968350,1709307032322,-288.83,0.00019408,2]
[315968351,1709307032331,-83.17970469,0.0001946,2]
[315968360,1709307038945,-231.77132963,0.00016231,2]
[315968361,1709307038955,-108.90867037,0.00016231,2]
[315968362,1709307039053,-56.79973041,0.00016231,2]
[315968363,1709307039063,-4441.34867266,0.00016601,5]
[315968364,1709307039073,-3351.57340589,0.00018774,2]
[315968365,1709307039083,-205.65029531,0.0001946,2]
[315968366,1709307039093,-288.83,0.00019512,2]
[315968367,1709307039102,-288.83,0.00019564,2]
[315968368,1709307039112,-288.83,0.00019616,2]
[315968369,1709307039123,-648.17643728,0.00019651,2]
[315968370,1709307039132,-288.83,0.00019668,2]
[315968371,1709307039142,-288.83,0.0001972,2]
[315968372,1709307039152,-288.83,0.00019773,2]
[315968373,1709307039163,-288.83,0.00019825,2]
[315968374,1709307039173,-203.0,0.00019865,4]
[315968375,1709307039182,-288.83,0.00019877,2]
[315968376,1709307039192,-288.83,0.00019929,2]
[315968377,1709307039202,-288.83,0.00019981,2]
[315968378,1709307039212,-648.17643727,0.00020179,2]
[315968379,1709307039224,-5303.84063579,0.00020279,2]
[315968380,1709307039237,-7163.87936421,0.00020279,2]
[315968381,1709307039247,-170.94,0.00020301,2]
[315968382,1709307039257,-171.0,0.00020393,2]
[315968383,1709307039267,-37351.18123657,0.0002055,2]
[315968385,1709307039280,-2762.09521289,0.0002055,2]
[315968386,1709307039292,-6025.12429739,0.0002055,2]
[315968388,1709307039302,-1038.0,0.00020551,2]
[315968389,1709307039311,-177.0,0.00020551,2]
[315968390,1709307039321,-352.0,0.00020551,2]
[315968391,1709307039330,-174.56,0.00020661,2]
[315968392,1709307039340,-492.1738,0.00020692,2]
[315968393,1709307039350,-185.85,0.00020768,2]
[315968394,1709307039359,-263.42,0.00020822,2]
[315968395,1709307039369,-150.0,0.00021027,2]
[315968396,1709307039378,-1192.65,0.00021096,2]
[315968397,1709307039388,-178.0,0.000211,2]
[315968400,1709307039398,-1225.24,0.00021136,2]
[315968402,1709307039408,-364.0,0.00021335,2]
[315968404,1709307039418,-1200.0,0.0002137,2]
[315968406,1709307039427,-169.26,0.00021475,2]
[315968408,1709307039438,-2661.23,0.00021566,2]
[315968410,1709307039451,-167.17,0.00021635,2]
[315968412,1709307039461,-178.0,0.00021648,2]
[315968414,1709307039472,-171.0,0.00021668,2]
[315968417,1709307039483,-636.0,0.00021687,2]
[315968419,1709307039494,-306.13497521,0.000217,2]
[315968421,1709307039504,-4564.3799433,0.000218,4]
[315968423,1709307039514,-190.8069841,0.00021817,2]
[315968426,1709307039537,-308.9974159,0.00021817,2]
[315968429,1709307039547,-612.46754419,0.00021817,2]
[315968446,1709307039702,-387.53245581,0.00021817,2]
[315968448,1709307039712,-1523.2062,0.00021817,2]
[315968450,1709307039726,-4264.8712355,0.000219,2]
[315968452,1709307039736,-407.27430941,0.00021917,2]
[315968455,1709307039751,-500.0,0.00021917,2]
[315968457,1709307039761,-504.93170077,0.00021917,2]
[315968459,1709307039771,-522.43302845,0.00021917,2]
[315968461,1709307039782,-300.7418493,0.00021917,10]
[315968463,1709307039794,-500.0,0.00021917,2]
[315968465,1709307039805,-500.0,0.00021917,2]
[315968467,1709307039815,-500.0,0.00021917,2]
[315968469,1709307039826,-500.0,0.00021917,2]
[315968472,1709307039837,-500.0,0.00021917,2]
[315968474,1709307039847,-500.0,0.00021917,2]
[315968476,1709307039857,-500.0,0.00021917,2]
[315968478,1709307039868,-500.0,0.00021917,2]
[315968480,1709307039878,-500.0,0.00021917,2]
[315968482,1709307039888,-500.0,0.00021917,2]
[315968484,1709307039898,-500.0,0.00021917,2]
[315968487,1709307039908,-500.0,0.00021917,2]
[315968489,1709307039919,-500.0,0.00021917,2]
[315968491,1709307039929,-500.0,0.00021917,2]
[315968493,1709307039939,-500.0,0.00021917,2]
[315968495,1709307039950,-500.0,0.00021917,2]
[315968497,1709307039960,-500.0,0.00021917,2]
[315968499,1709307039970,-500.0,0.00021917,2]
[315968501,1709307039983,-500.0,0.00021917,2]
[315968504,1709307039994,-500.0,0.00021917,2]
[315968507,1709307040003,-500.0,0.00021917,2]
[315968510,1709307040013,-500.0,0.00021917,2]
[315968512,1709307040023,-500.0,0.00021917,2]
[315968514,1709307040034,-574.84978603,0.00021917,2]
[315968516,1709307040043,-500.0,0.00021917,2]
[315968518,1709307040053,-500.0,0.00021917,2]
[315968520,1709307040063,-500.0,0.00021917,2]
[315968522,1709307040073,-500.0,0.00021917,2]
[315968524,1709307040083,-500.0,0.00021917,2]
[315968526,1709307040093,-500.0,0.00021917,2]
[315968528,1709307040103,-500.0,0.00021917,2]
[315968530,1709307040113,-500.0,0.00021917,2]
[315968532,1709307040123,-500.0,0.00021917,2]
[315968534,1709307040133,-307.93709557,0.00021917,2]
[315968537,1709307040143,-524.28733642,0.00021917,2]
[315968539,1709307040153,-500.0,0.00021917,2]
[315968541,1709307040163,-500.0,0.00021917,2]
[315968543,1709307040175,-500.0,0.00021917,2]
[315968545,1709307040185,-500.0,0.00021917,2]
[315968547,1709307040195,-500.0,0.00021917,2]
[315968549,1709307040205,-500.0,0.00021917,2]
[315968552,1709307040215,-500.0,0.00021917,2]
[315968554,1709307040227,-500.0,0.00021917,2]
[315968556,1709307040237,-500.0,0.00021917,2]
[315968558,1709307040247,-500.0,0.00021917,2]
[315968560,1709307040257,-500.0,0.00021917,2]
[315968562,1709307040267,-500.0,0.00021917,2]
[315968564,1709307040277,-500.0,0.00021917,2]
[315968566,1709307040287,-500.0,0.00021917,2]
[315968568,1709307040298,-398.94693246,0.00021917,2]
[315968570,1709307040308,-500.0,0.00021917,2]
[315968572,1709307040318,-500.0,0.00021917,2]
[315968574,1709307040327,-500.0,0.00021917,2]
[315968576,1709307040337,-500.0,0.00021917,2]
[315968579,1709307040347,-500.0,0.00021917,2]
[315968581,1709307040357,-200.85069361,0.00021917,2]
[315968583,1709307040367,-500.0,0.00021917,2]
[315968585,1709307040377,-500.0,0.00021917,2]
[315968587,1709307040387,-641.48,0.00021917,2]
[315968589,1709307040397,-508.36,0.00021917,2]
[315968591,1709307040407,-500.0,0.00021917,2]
[315968593,1709307040417,-159.41,0.00021917,2]
[315968595,1709307040427,-733.34,0.00021917,2]
[315968597,1709307040437,-500.0,0.00021917,2]
[315968599,1709307040446,-500.0,0.00021917,2]
[315968602,1709307040456,-500.0,0.00021917,2]
[315968604,1709307040466,-500.0,0.00021917,2]
[315968606,1709307040478,-708.41,0.00021917,2]
[315968608,1709307040487,-500.0,0.00021917,2]
[315968610,1709307040498,-500.0,0.00021917,2]
[315968612,1709307040507,-500.0,0.00021917,2]
[315968614,1709307040517,-681.36,0.00021917,2]
[315968616,1709307040527,-500.0,0.00021917,2]
[315968618,1709307040536,-500.0,0.00021917,2]
[315968620,1709307040546,-500.0,0.00021917,2]
[315968622,1709307040556,-500.0,0.00021917,2]
[315968624,1709307040566,-500.0,0.00021917,2]
[315968626,1709307040575,-514.15,0.00021917,2]
[315968628,1709307040585,-500.0,0.00021917,2]
[315968631,1709307040595,-500.0,0.00021917,2]
[315968633,1709307040606,-500.0,0.00021917,2]
[315968670,1709307040954,-500.0,0.00021917,2]
[315968672,1709307040972,-500.0,0.00021917,2]
[315968675,1709307040984,-500.0,0.00021917,2]
[315968677,1709307040993,-500.0,0.00021917,2]
[315968679,1709307041003,-500.0,0.00021917,2]
[315968681,1709307041012,-780.87,0.00021917,2]
[315968683,1709307041022,-500.0,0.00021917,2]
[315968685,1709307041031,-500.0,0.00021917,2]